bitfinex/quotes_SOLUSD_20250226
["timestamp","ask_amount","ask_price","bid_price","bid_amount"]
[1740588093254,18.64964886,138.88,138.82,20.0]
[1740588093542,21.2603126,138.88,138.8,0.063]
[1740588093745,18.64964886,138.86,138.8,0.063]
[1740588093923,82.9,138.87,138.8,0.063]
[1740588093924,18.64964886,138.84,138.8,0.063]
[1740588094324,82.9,138.85,138.8,0.063]
[1740588094645,18.64964886,138.84,138.8,20.063]
[1740588094853,18.64964886,138.82,138.8,0.063]
[1740588095032,103.44132347,138.81,138.8,0.063]
[1740588095533,19.37004886,138.81,138.8,0.063]
[1740588095861,7.181,138.82,138.8,0.063]
[1740588096059,6.4607,138.82,138.8,0.063]
[1740588096355,7.181,138.82,138.8,0.063]
[1740588096536,6.4607,138.82,138.8,0.063]
[1740588096732,7.181,138.82,138.8,0.063]
[1740588096941,18.64964886,138.81,138.8,0.063]
[1740588097359,20.54136446,138.81,138.8,0.063]
[1740588097665,19.07613357,138.8,138.77,0.063]
[1740588097965,1.89225564,138.79,138.77,0.063]
[1740588098147,18.64964886,138.78,138.77,0.063]
[1740588099144,19.07613357,138.78,138.77,0.063]
[1740588099457,19.79663357,138.78,138.77,0.063]
[1740588099755,20.93879514,138.78,138.77,0.063]
[1740588099965,18.79181043,138.76,138.69,0.063]
[1740588100140,1.89281042,138.75,138.69,0.063]
[1740588100341,84.79281042,138.75,138.69,0.063]
[1740588100549,18.64964886,138.73,138.69,0.063]
[1740588100734,82.9,138.72,138.69,0.063]
[1740588100936,82.9,138.71,138.69,0.063]
[1740588101130,82.9,138.7,138.69,0.063]
[1740588101439,21.26349314,138.7,138.69,0.063]
[1740588102470,19.37054886,138.7,138.69,0.063]
[1740588105381,21.26382825,138.7,138.69,0.063]
[1740588106876,8.37785859,138.73,138.69,0.063]
[1740588107043,18.64964886,138.72,138.69,0.063]
[1740588107669,19.37044886,138.72,138.69,0.063]
[1740588108776,0.7208,138.73,138.69,0.063]
[1740588110287,1.89325859,138.74,138.69,0.063]
[1740588110288,18.64964886,138.71,138.69,0.063]
[1740588111473,1.89306059,138.7,138.69,0.063]
[1740588112154,2.61396059,138.7,138.69,0.063]
[1740588112563,0.7209,138.7,138.69,0.063]
[1740588114182,0.7209,138.71,138.69,0.063]
[1740588114359,19.37054886,138.71,138.69,0.063]
[1740588114560,20.96920204,138.7,138.69,0.063]
[1740588114863,20.96920204,138.7,138.69,0.0001]
[1740588116057,21.69010204,138.7,138.69,0.0001]
[1740588117172,21.69010204,138.7,138.66,0.063]
[1740588117173,19.07613357,138.67,138.66,0.0001]
[1740588117493,20.97015278,138.67,138.66,0.0001]
[1740588119169,23.49405278,138.67,138.63,0.03]
[1740588119888,18.64964886,138.65,138.63,0.03]
[1740588120064,101.54964886,138.64,138.63,0.03]
[1740588120264,18.64964886,138.64,138.63,0.03]
[1740588120573,4.41795386,138.67,138.63,0.03]
[1740588120778,82.9,138.66,138.63,0.03]
[1740588121090,1.8937143,138.65,138.63,0.03]
[1740588121258,83.6212,138.64,138.63,0.03]
[1740588121462,19.79733357,138.64,138.63,0.0001]
[1740588121683,21.60053357,138.64,138.56,0.063]
[1740588121871,104.87066827,138.63,138.56,0.063]
[1740588122068,19.07613357,138.61,138.56,0.063]
[1740588122364,84.79481293,138.6,138.56,0.063]
[1740588122860,2.0,138.63,138.56,0.063]
[1740588122861,82.9,138.59,138.56,0.063]
[1740588123064,82.9,138.59,138.58,20.0]
[1740588123272,82.9,138.63,138.58,27.35816157]
[1740588123486,82.9,138.62,138.58,20.0]
[1740588123692,0.7213,138.63,138.58,20.0]
[1740588123693,82.9,138.61,138.58,20.0]
[1740588124065,82.9,138.61,138.57,20.0]
[1740588125096,82.9,138.65,138.6,0.14216157]
[1740588125270,83.6211,138.66,138.6,20.0]
[1740588125593,83.6211,138.66,138.61,20.0]
[1740588125770,83.6211,138.66,138.59,1.5051]
[1740588125771,82.9,138.66,138.62,20.14216157]
[1740588126594,83.6211,138.66,138.62,20.14216157]
[1740588126793,83.6211,138.66,138.61,20.0]
[1740588126794,82.9,138.65,138.61,20.0]
[1740588127699,83.6212,138.65,138.59,21.5051]
[1740588127887,83.6212,138.65,138.59,1.5051]
[1740588128190,83.6212,138.65,138.61,20.0]
[1740588128784,82.9,138.65,138.6,0.56864628]
[1740588129109,82.9,138.67,138.6,0.56864628]
[1740588129310,0.7211,138.68,138.63,20.0]
[1740588129791,0.7209,138.7,138.66,20.0]
[1740588130197,2.5233,138.7,138.66,20.0]
[1740588130567,18.64964886,138.68,138.61,0.03]
[1740588130791,20.07613357,138.66,138.61,0.03]
[1740588131006,9.75425832,138.65,138.61,0.03]
[1740588131192,82.9,138.64,138.61,0.03]
[1740588131379,18.64964886,138.62,138.61,0.03]
[1740588131612,18.64964886,138.6,138.56,0.063]
[1740588131816,18.64964886,138.58,138.56,0.063]
[1740588132101,82.9,138.57,138.56,0.063]
[1740588132308,0.7213,138.63,138.56,0.48948471]
[1740588132600,0.7213,138.63,138.57,20.0]
[1740588132789,83.6213,138.64,138.59,20.0]
[1740588132983,0.7211,138.66,138.59,20.0]
[1740588133585,110.17074886,138.67,138.59,20.0]
[1740588133898,90.8,138.67,138.61,20.0]
[1740588134196,82.9,138.67,138.61,20.0]
[1740588134495,0.7209,138.72,138.64,20.0]
[1740588134677,18.64964886,138.7,138.64,20.0]
[1740588135071,82.9,138.71,138.64,20.0]
[1740588135894,82.9,138.71,138.64,27.2127]
[1740588136505,18.64964886,138.7,138.64,20.0]
[1740588139314,82.9,138.59,138.56,20.063]
[1740588139481,82.9,138.59,138.56,0.063]
[1740588139691,83.6215,138.59,138.56,0.063]
[1740588139894,84.79472612,138.58,138.56,0.063]
[1740588140201,82.9,138.57,138.56,0.063]
[1740588140808,18.64964886,138.57,138.56,0.063]
[1740588141314,4.42030726,138.59,138.56,0.063]
[1740588141613,19.07613357,138.58,138.56,0.063]
[1740588141810,2.61669233,138.57,138.56,0.063]
[1740588142383,5.42079233,138.57,138.54,0.03]
[1740588143020,1.42648471,138.56,138.54,0.03]
[1740588143184,18.64964886,138.54,138.52,0.03]
[1740588143389,20.54529391,138.53,138.52,0.03]
[1740588143690,0.7217,138.55,138.52,0.03]
[1740588144806,1.89535468,138.54,138.52,0.03]
[1740588145394,20.54500354,138.54,138.52,0.03]
[1740588145591,19.37144886,138.53,138.52,0.03]
[1740588146207,0.7218,138.53,138.52,0.03]
[1740588146592,3.69991239,138.55,138.52,0.03]
[1740588146793,19.37144886,138.54,138.52,0.03]
[1740588147309,20.54501115,138.53,138.52,0.03]
[1740588147894,20.97149586,138.53,138.49,0.03]
[1740588148282,19.07613357,138.52,138.49,0.03]
[1740588148493,1.89597924,138.51,138.49,0.03]
[1740588148888,21.2675281,138.51,138.49,0.03]
[1740588149609,2.61787924,138.51,138.49,0.03]
[1740588150516,0.7219,138.51,138.49,0.03]
[1740588151012,1.89578476,138.51,138.49,0.03]
[1740588151789,2.46443104,138.51,138.49,0.03]
[1740588151992,0.42648471,138.5,138.49,0.03]
[1740588152201,21.21829514,138.5,138.49,0.03]
[1740588153015,18.64964886,138.5,138.49,0.03]
[1740588153215,21.21829514,138.5,138.49,0.03]
[1740588153385,20.94029514,138.5,138.49,0.03]
[1740588153787,21.94029514,138.5,138.49,0.03]
[1740588153988,20.94029514,138.5,138.49,0.03]
[1740588154193,21.94029514,138.5,138.49,0.03]
[1740588154416,30.4661105,138.5,138.49,0.03]
[1740588155813,33.07418738,138.5,138.49,0.03]
[1740588156705,32.07418738,138.5,138.49,0.03]
[1740588156905,34.07418738,138.5,138.49,0.03]
[1740588157719,19.07613357,138.49,138.48,0.03]
[1740588157921,26.93613357,138.49,138.48,0.03]
[1740588158223,26.50964886,138.49,138.48,0.03]
[1740588158402,29.07829514,138.49,138.48,0.03]
[1740588159013,26.50964886,138.49,138.48,0.03]
[1740588159322,9.79632258,138.5,138.48,0.03]
[1740588159619,18.64964886,138.49,138.48,0.03]
[1740588159822,9.79632258,138.5,138.48,0.03]
[1740588159999,7.9,138.5,138.48,0.03]
[1740588160919,9.7958993,138.5,138.48,0.03]
[1740588162097,7.9,138.5,138.48,0.03]
[1740588163229,19.54902054,138.53,138.48,20.03]
[1740588163517,9.77580735,138.53,138.48,20.03]
[1740588163891,84.79580735,138.53,138.48,20.03]
[1740588164088,85.51760735,138.53,138.48,20.03]
[1740588164895,101.54964886,138.52,138.48,20.03]
[1740588165123,101.54964886,138.52,138.48,0.03]
[1740588165124,82.9,138.52,138.48,0.03]
[1740588165429,82.9,138.56,138.52,21.5717]
[1740588165724,82.9,138.59,138.52,21.5717]
[1740588165942,90.76,138.6,138.52,21.5717]
[1740588166100,91.4815,138.6,138.52,21.5717]
[1740588166417,7.86,138.6,138.53,20.56864628]
[1740588166795,18.64964886,138.59,138.53,20.0]
[1740588167029,101.54964886,138.59,138.53,20.0]
[1740588167326,18.64964886,138.56,138.48,7.9779]
[1740588167494,18.64964886,138.54,138.48,7.9779]
[1740588167690,18.64964886,138.52,138.48,0.03]
[1740588167913,84.79586478,138.51,138.48,0.03]
[1740588168308,101.54964886,138.5,138.48,0.03]
[1740588168701,1.89599527,138.49,138.48,0.03]
[1740588168910,1.80602707,138.49,138.48,0.03]
[1740588169426,82.9,138.5,138.48,0.03]
[1740588169839,103.35569791,138.49,138.48,0.03]
[1740588170142,82.9,138.49,138.48,0.03]
[1740588171021,101.54964886,138.49,138.48,0.03]
[1740588171341,102.27164886,138.49,138.48,0.03]
[1740588171634,0.7218,138.53,138.48,0.03]
[1740588171836,18.64964886,138.52,138.48,0.03]
[1740588172046,103.35515719,138.52,138.48,0.03]
[1740588172345,0.42648471,138.51,138.48,0.03]
[1740588172545,18.64964886,138.49,138.48,0.03]
[1740588172726,101.54964886,138.49,138.48,0.03]
[1740588173137,82.9,138.49,138.48,0.03]
[1740588174313,83.6219,138.52,138.48,0.03]
[1740588174818,82.9,138.52,138.48,0.03]
[1740588175134,83.6219,138.52,138.48,0.03]
[1740588175711,0.063,138.51,138.48,0.03]
[1740588176937,18.71264886,138.51,138.48,0.03]
[1740588177541,1.80597131,138.5,138.48,0.03]
[1740588178246,84.70597131,138.5,138.48,0.03]
[1740588178643,0.722,138.49,138.48,0.03]
[1740588179146,19.37164886,138.49,138.48,0.03]
[1740588179646,0.722,138.49,138.48,0.03]
[1740588180330,19.79813357,138.49,138.48,0.03]
[1740588180721,19.79813357,138.49,138.48,0.0001]
[1740588180722,19.94029514,138.49,138.48,0.0001]
[1740588180940,19.94029514,138.49,138.47,0.0001]
[1740588180941,19.79181043,138.48,138.47,0.0001]
[1740588181229,21.59853454,138.48,138.47,0.0001]
[1740588181543,20.45637297,138.48,138.47,0.0001]
[1740588181720,0.722,138.49,138.47,0.0001]
[1740588181923,38.64964886,138.48,138.47,0.0001]
[1740588182123,39.21829514,138.48,138.47,0.0001]
[1740588182330,0.14216157,138.47,138.45,0.0001]
[1740588182531,2.23330099,138.46,138.45,0.0001]
[1740588182819,25.85706643,138.46,138.45,0.0001]
[1740588183144,19.07613357,138.45,138.42,0.03]
[1740588183472,1.80705936,138.44,138.42,0.03]
[1740588184222,19.07613357,138.43,138.42,0.03]
[1740588184544,20.07613357,138.43,138.42,0.03]
[1740588184945,20.79843357,138.43,138.42,0.03]
[1740588185120,19.37194886,138.43,138.42,0.03]
[1740588185325,20.37194886,138.43,138.42,0.03]
[1740588185542,19.37194886,138.43,138.42,0.03]
[1740588185922,0.7223,138.43,138.42,0.03]
[1740588186540,19.37194886,138.43,138.42,0.03]
[1740588186741,0.7223,138.43,138.42,0.03]
[1740588187134,0.7222,138.45,138.42,0.03]
[1740588188723,0.7223,138.43,138.42,0.03]
[1740588190038,20.45514886,138.46,138.42,0.03]
[1740588190039,0.7223,138.44,138.42,0.03]
[1740588190243,83.6223,138.44,138.42,0.03]
[1740588192027,85.42885262,138.44,138.42,0.03]
[1740588192230,83.6223,138.44,138.42,0.03]
[1740588192928,103.35634786,138.43,138.42,0.03]
[1740588193543,82.9,138.43,138.42,0.03]
[1740588194849,101.54964886,138.43,138.42,0.03]
[1740588195040,102.27194886,138.43,138.42,0.03]
[1740588196243,19.37194886,138.43,138.42,0.03]
[1740588197637,19.37194886,138.43,138.42,0.0001]
[1740588199827,19.79843357,138.43,138.41,0.0001]
[1740588200152,28.56348528,138.42,138.41,0.0001]
[1740588200558,28.56348528,138.42,138.4,0.0001]
[1740588200739,29.56348528,138.42,138.4,0.0001]
[1740588201637,28.56348528,138.42,138.4,0.0001]
[1740588201953,0.7224,138.41,138.4,0.0001]
[1740588202549,8.4024,138.42,138.4,0.0001]
[1740588203055,0.7224,138.43,138.4,0.0001]
[1740588203656,7.64,138.46,138.4,1.5782]
[1740588203833,1.86968308,138.48,138.4,21.5782]
[1740588204039,0.063,138.48,138.42,0.56864628]
[1740588204457,0.063,138.48,138.45,20.0]
[1740588204839,0.063,138.48,138.46,20.14216157]
[1740588206746,0.063,138.48,138.46,20.0]
[1740588208043,0.063,138.48,138.47,20.56864628]
[1740588208227,0.063,138.48,138.47,28.64764628]
[1740588209058,0.063,138.48,138.47,28.22116157]
[1740588209258,0.063,138.48,138.47,28.079]
[1740588209442,0.063,138.48,138.47,1.5258]
[1740588210457,0.063,138.48,138.47,21.5258]
[1740588211163,0.063,138.48,138.47,22.09444628]
[1740588211362,0.063,138.48,138.47,3.09444628]
[1740588211759,0.063,138.51,138.5,0.14216157]
[1740588211948,0.063,138.51,138.5,20.14216157]
[1740588212260,0.063,138.51,138.5,20.0]
[1740588214461,0.063,138.51,138.47,84.9258]
[1740588214462,0.063,138.51,138.47,83.9258]
[1740588214666,0.063,138.51,138.48,20.14216157]
[1740588214866,0.063,138.51,138.48,20.0]
[1740588215042,0.063,138.51,138.47,1.5258]
[1740588215243,0.063,138.51,138.47,21.5258]
[1740588216159,0.063,138.51,138.47,20.0]
[1740588216561,0.063,138.51,138.44,6.0484]
[1740588216766,82.9,138.5,138.44,6.0484]
[1740588217359,82.9,138.5,138.47,20.0]
[1740588218375,0.063,138.51,138.48,0.56864628]
[1740588219064,0.063,138.51,138.48,0.14216157]
[1740588219449,0.063,138.51,138.47,20.0]
[1740588220149,82.963,138.51,138.48,0.14216157]
[1740588220349,82.963,138.51,138.47,20.0]
[1740588220554,82.963,138.51,138.44,13.6084]
[1740588221070,82.963,138.51,138.45,0.56864628]
[1740588221249,82.963,138.51,138.45,1.56864628]
[1740588221443,82.963,138.51,138.47,20.0]
[1740588223344,82.963,138.51,138.47,20.03]
[1740588224168,0.063,138.51,138.48,20.14216157]
[1740588225746,0.063,138.51,138.48,27.36316157]
[1740588226173,0.063,138.51,138.49,0.14216157]
[1740588226550,0.063,138.51,138.5,20.14216157]
[1740588226748,0.063,138.51,138.5,20.0]
[1740588228487,0.063,138.51,138.48,89.621]
[1740588228868,0.063,138.51,138.48,7.221]
[1740588229773,0.063,138.51,138.47,0.03]
[1740588230076,0.063,138.51,138.47,7.39386157]
[1740588231360,0.063,138.51,138.5,20.56864628]
[1740588231565,0.063,138.51,138.5,0.56864628]
[1740588232353,0.063,138.51,138.5,7.36236157]
[1740588232681,0.063,138.51,138.5,7.2202]
[1740588233373,0.063,138.51,138.5,7.36236157]
[1740588233550,0.063,138.51,138.5,8.78884628]
[1740588234186,0.063,138.51,138.5,7.78884628]
[1740588234383,0.063,138.51,138.5,91.18884628]
[1740588234562,0.063,138.51,138.5,108.83849514]
[1740588234749,0.063,138.51,138.5,91.18884628]
[1740588235281,0.063,138.51,138.5,90.18884628]
[1740588235783,0.063,138.51,138.5,94.84619634]
[1740588235989,0.063,138.51,138.5,93.84619634]
[1740588236885,0.063,138.51,138.5,89.76236157]
[1740588237185,0.063,138.51,138.5,82.54216157]
[1740588237556,0.063,138.51,138.47,19.0844]
[1740588237557,0.063,138.51,138.47,82.43]
[1740588237756,0.063,138.51,138.5,20.0]
[1740588237983,0.063,138.51,138.48,0.14216157]
[1740588239377,0.063,138.51,138.47,82.43]
[1740588239576,0.063,138.51,138.49,20.0]
[1740588245288,0.063,138.51,138.5,0.56864628]
[1740588245583,0.0001,138.51,138.5,111.74099514]
[1740588246167,0.0001,138.51,138.5,118.96119514]
[1740588246369,0.0001,138.51,138.5,95.33497222]
[1740588246675,0.0001,138.51,138.5,93.82427222]
[1740588246866,0.0001,138.51,138.5,90.18884628]
[1740588247267,0.0001,138.51,138.5,82.54216157]
[1740588247874,0.0001,138.51,138.48,7.56]
[1740588249573,75.4262,138.56,138.48,7.56]
[1740588249776,75.4262,138.55,138.48,7.56]
[1740588250389,75.4262,138.55,138.48,14.7812]
[1740588250591,77.9523,138.55,138.48,7.56]
[1740588250760,26.90332104,138.54,138.47,82.43]
[1740588250963,75.4262,138.53,138.47,0.03]
[1740588251189,75.4262,138.52,138.48,0.14216157]
[1740588251362,75.4262,138.52,138.48,20.14216157]
[1740588252905,75.4262,138.52,138.47,20.03]
[1740588253083,76.1481,138.52,138.47,0.03]
[1740588253767,77.9528,138.52,138.47,0.03]
[1740588255366,76.1481,138.52,138.47,0.03]
[1740588255566,75.4262,138.51,138.47,0.03]
[1740588256592,76.1482,138.51,138.47,0.03]
[1740588256811,75.4262,138.54,138.49,0.14216157]
[1740588257109,0.063,138.57,138.53,0.14216157]
[1740588257274,0.063,138.57,138.53,0.56864628]
[1740588258888,0.063,138.57,138.53,0.14216157]
[1740588259085,75.97577119,138.59,138.53,0.14216157]
[1740588260713,75.97577119,138.59,138.52,102.4]
[1740588260913,77.77957119,138.59,138.52,102.4]
[1740588261210,75.97577119,138.59,138.53,0.14216157]
[1740588261584,75.97577119,138.59,138.53,0.56864628]
[1740588262386,77.77957119,138.59,138.52,102.4]
[1740588265492,18.64964886,138.57,138.47,133.77]
[1740588265696,75.25427119,138.56,138.47,133.77]
[1740588265893,75.25427119,138.56,138.48,0.14216157]
[1740588266300,75.25427119,138.56,138.5,20.0]
[1740588266496,75.25427119,138.55,138.5,20.0]
[1740588266698,0.7218,138.54,138.47,133.77]
[1740588266915,75.25427119,138.53,138.47,133.77]
[1740588267288,75.25427119,138.53,138.47,0.03]
[1740588267993,0.7219,138.52,138.47,0.03]
[1740588268314,2.5266,138.52,138.47,0.03]
[1740588268484,95.79966429,138.51,138.47,0.03]
[1740588268690,75.25427119,138.5,138.47,0.03]
[1740588269014,0.42648471,138.48,138.47,0.03]
[1740588269218,0.42648471,138.48,138.41,0.03]
[1740588269515,18.64964886,138.46,138.41,0.03]
[1740588269716,1.89652923,138.45,138.41,0.03]
[1740588269887,101.54964886,138.44,138.41,0.03]
[1740588270091,85.94586325,138.43,138.41,0.03]
[1740588270286,18.64964886,138.42,138.41,0.03]
[1740588270510,25.21343357,138.42,138.41,0.03]
[1740588271113,103.11829514,138.41,138.4,0.0001]
[1740588271417,0.42648471,138.39,138.38,0.03]
[1740588271725,28.533863,138.39,138.38,0.03]
[1740588272212,29.256363,138.39,138.38,0.03]
[1740588273811,0.42648471,138.37,138.36,0.03]
[1740588274025,20.97426092,138.37,138.36,0.03]
[1740588274317,21.69696092,138.37,138.36,0.03]
[1740588275190,23.83912249,138.37,138.36,0.0001]
[1740588275389,20.0,138.35,138.33,0.03]
[1740588275596,21.89822789,138.35,138.33,0.03]
[1740588275812,1.89822789,138.35,138.33,0.03]
[1740588276285,20.97436146,138.35,138.33,0.03]
[1740588276619,1.8982673,138.35,138.33,0.03]
[1740588277187,2.32475201,138.35,138.33,0.03]
[1740588277389,3.04755201,138.35,138.33,0.03]
[1740588277589,39.79181043,138.34,138.33,0.03]
[1740588277818,56.82970833,138.34,138.33,0.03]
[1740588278011,57.82970833,138.34,138.33,0.0001]
[1740588279120,58.55250833,138.34,138.33,0.0001]
[1740588280406,1.0,138.33,138.29,0.03]
[1740588280605,2.3254205,138.32,138.29,0.03]
[1740588281317,20.97506936,138.32,138.29,0.03]
[1740588281691,21.69796936,138.32,138.29,0.03]
[1740588282622,23.84013093,138.32,138.29,0.03]
[1740588282919,0.14216157,138.27,138.22,2.0777249]
[1740588283090,1.89956279,138.26,138.22,2.0777249]
[1740588283291,19.07613357,138.25,138.22,2.0777249]
[1740588283536,1.8996238,138.24,138.22,2.0777249]
[1740588283892,18.64964886,138.23,138.22,2.0777249]
[1740588287096,2.3262381,138.23,138.22,2.0777249]
[1740588287407,3.19179967,138.23,138.22,2.0777249]
[1740588287723,21.84144853,138.23,138.22,2.0777249]
[1740588288025,0.28432314,138.26,138.22,2.0777249]
[1740588288227,82.9,138.25,138.22,2.0777249]
[1740588288414,82.9,138.25,138.22,9.3124249]
[1740588288793,82.9,138.25,138.22,10.0250249]
[1740588289004,82.9,138.25,138.22,2.0777249]
[1740588289697,82.9,138.25,138.22,9.3124249]
[1740588289925,82.9,138.25,138.22,2.0777249]
[1740588290747,82.9,138.25,138.22,22.0777249]
[1740588291045,82.9,138.25,138.22,2.0777249]
[1740588291434,82.9,138.28,138.22,2.0777249]
[1740588291643,82.9,138.27,138.22,2.0777249]
[1740588291817,82.9,138.27,138.22,9.3124249]
[1740588292649,82.9,138.29,138.24,20.0]
[1740588293149,18.64964886,138.28,138.22,2.0777249]
[1740588293321,82.9,138.27,138.22,9.3124249]
[1740588293517,82.9,138.27,138.22,2.0777249]
[1740588293722,82.9,138.27,138.22,9.3124249]
[1740588294726,82.9,138.3,138.25,20.0]
[1740588294929,82.9,138.29,138.25,20.0]
[1740588295751,82.9,138.29,138.23,0.14216157]
[1740588295930,82.9,138.29,138.23,7.37616157]
[1740588297551,82.9,138.31,138.26,20.0]
[1740588298062,82.9,138.31,138.26,27.2326]
[1740588298750,82.9,138.31,138.26,20.0]
[1740588298950,82.9,138.31,138.26,27.2327]
[1740588299145,82.9,138.33,138.27,0.14216157]
[1740588300154,82.9,138.33,138.28,20.0]
[1740588300350,82.9,138.33,138.27,7.37416157]
[1740588300557,82.9,138.35,138.3,20.0]
[1740588300852,82.9,138.35,138.32,8.2482]
[1740588301077,83.6226,138.38,138.32,8.2482]
[1740588302931,101.54964886,138.37,138.28,7.8581]
[1740588303144,18.64964886,138.35,138.28,7.8581]
[1740588303351,82.9,138.34,138.28,7.8581]
[1740588303631,82.9,138.33,138.28,7.8581]
[1740588303847,82.9,138.33,138.28,1.5278]
[1740588304052,82.9,138.33,138.28,8.7592]
[1740588304956,82.9,138.33,138.29,0.56864628]
[1740588305156,82.9,138.33,138.31,20.0]
[1740588305362,0.7228,138.35,138.31,20.0]
[1740588305743,84.79791624,138.34,138.28,1.5278]
[1740588305941,82.9,138.33,138.28,1.5278]
[1740588306242,0.7229,138.32,138.25,6.3303]
[1740588306454,82.9,138.31,138.25,6.3303]
[1740588306862,82.9,138.31,138.24,1.6054]
[1740588307057,101.54964886,138.3,138.24,1.6054]
[1740588307261,18.64964886,138.28,138.22,2.0777249]
[1740588307568,0.42648471,138.25,138.22,2.0777249]
[1740588307742,18.64964886,138.23,138.22,2.0777249]
[1740588308163,21.2726987,138.23,138.22,2.0777249]
[1740588308363,21.69918341,138.23,138.22,2.0777249]
[1740588308672,21.69918341,138.23,138.22,2.49e-05]
[1740588308864,29.27918341,138.23,138.22,2.49e-05]
[1740588309180,34.21128097,138.23,138.22,2.49e-05]
[1740588309548,1.0,138.16,138.08,0.03]
[1740588309866,9.48128829,138.15,138.08,0.03]
[1740588310068,18.64964886,138.14,138.08,0.03]
[1740588310374,2.62501226,138.13,138.08,0.03]
[1740588310572,7.58,138.15,138.08,0.03]
[1740588310744,0.7237,138.16,138.08,20.03]
[1740588310945,0.7237,138.16,138.09,0.14216157]
[1740588311146,0.7237,138.16,138.08,27.61]
[1740588311357,0.7237,138.16,138.08,30.5723953]
[1740588311564,0.7237,138.16,138.08,29.5723953]
[1740588311753,0.7237,138.16,138.08,30.5723953]
[1740588312176,0.7237,138.16,138.09,0.14216157]
[1740588312559,1.90037181,138.18,138.09,1.56864628]
[1740588312752,0.7236,138.18,138.09,1.56864628]
[1740588312959,21.27348739,138.18,138.09,0.14216157]
[1740588313590,18.64964886,138.17,138.09,0.14216157]
[1740588313767,0.7237,138.16,138.09,0.14216157]
[1740588314785,83.6237,138.16,138.09,0.14216157]
[1740588315984,101.54964886,138.15,138.08,21.9923953]
[1740588316299,18.64964886,138.13,138.08,1.9923953]
[1740588316462,18.64964886,138.11,138.08,1.9923953]
[1740588316783,82.9,138.1,138.08,1.9923953]
[1740588316982,82.9,138.09,138.08,1.9923953]
[1740588318085,83.6241,138.09,138.08,1.9923953]
[1740588318283,0.7241,138.09,138.08,1.9923953]
[1740588318581,19.37374886,138.09,138.08,1.9923953]
[1740588318900,27.38023357,138.09,138.08,1.609e-05]
[1740588319063,19.07613357,138.08,137.99,6.2894]
[1740588319398,1.90217111,138.07,137.99,6.2894]
[1740588319690,0.7242,138.07,137.99,13.5362]
[1740588319894,0.7242,138.07,138.0,0.14216157]
[1740588320073,7.58,138.09,138.03,0.14216157]
[1740588320278,7.58,138.09,138.04,20.0]
[1740588320671,10.2057589,138.09,138.01,82.4]
[1740588320972,8.3041,138.09,138.01,82.4]
[1740588321690,1.90162578,138.08,138.01,82.4]
[1740588321882,1.90162578,138.08,137.99,6.2894]
[1740588322197,20.55127464,138.08,137.99,6.2894]
[1740588322367,6.3534,138.06,137.97,7.2478]
[1740588322569,20.55192688,138.05,137.97,7.2478]
[1740588322776,82.9,138.04,138.0,20.0]
[1740588322972,82.9,138.08,138.01,20.0]
[1740588323270,18.64964886,138.06,138.01,20.0]
[1740588323484,20.5517009,138.06,137.98,82.4]
[1740588323692,0.7244,138.03,137.97,7.2478]
[1740588323869,82.9,138.02,137.97,7.2478]
[1740588324392,82.9,138.02,137.96,0.14216157]
[1740588324593,82.9,138.02,137.96,0.56864628]